fUST/lending_fUST_20240610
["ID","MTS","AMOUNT","RATE_DAILY","PERIOD"]
[328944025,1718019034076,-500.0,0.00019998,2]
[328944026,1718019034086,-500.0,0.00019998,2]
[328944027,1718019034096,-500.0,0.00019998,2]
[328944028,1718019034107,-500.0,0.00019998,2]
[328944029,1718019034117,-521.88,0.00019999,2]
[328944030,1718019034127,-500.0,0.00019999,2]
[328944031,1718019034137,-500.0,0.00019999,2]
[328944032,1718019034148,-500.0,0.00019999,2]
[328944033,1718019034157,-500.0,0.00019999,2]
[328944034,1718019034168,-500.0,0.00019999,2]
[328944035,1718019034178,-500.0,0.00019999,2]
[328944036,1718019034188,-500.0,0.00019999,2]
[328944037,1718019034198,-500.0,0.00019999,2]
[328944038,1718019034209,-500.0,0.00019999,2]
[328944039,1718019034219,-562.82,0.00019999,2]
[328944040,1718019034230,-509.71230586,0.00019999,2]
[328944041,1718019034242,-500.0,0.00019999,2]
[328944042,1718019034252,-500.0,0.00019999,2]
[328944043,1718019034262,-500.0,0.00019999,2]
[328944044,1718019034277,-500.0,0.00019999,2]
[328944045,1718019034289,-500.0,0.00019999,2]
[328944046,1718019034299,-500.0,0.00019999,2]
[328944047,1718019034310,-500.0,0.00019999,2]
[328944048,1718019034320,-500.0,0.00019999,2]
[328944049,1718019034330,-500.0,0.00019999,2]
[328944050,1718019034342,-552.46,0.00019999,2]
[328944051,1718019034353,-500.0,0.00019999,2]
[328944052,1718019034363,-500.0,0.00019999,2]
[328944053,1718019034374,-500.0,0.00019999,2]
[328944054,1718019034384,-3310.55124961,0.0002,2]
[328944150,1718019044728,-500.0,0.00019178,2]
[328944151,1718019044741,-465.14721426,0.00019452,2]
[328944152,1718019044753,-4897.43730811,0.0002,2]
[328944163,1718019045219,-1292.53043906,0.0002,2]
[328944167,1718019045231,-1000.0,0.0002,20]
[328944170,1718019045243,-500.0,0.0002,2]
[328944173,1718019045253,-526.66,0.0002,2]
[328944176,1718019045264,-158.66,0.0002,2]
[328944179,1718019045278,-337.25,0.0002,2]
[328944181,1718019045289,-500.0,0.0002,2]
[328944183,1718019045300,-566.4,0.0002,2]
[328944185,1718019045313,-246.59495778,0.00020272,2]
[328944226,1718019045709,-257.98504222,0.00020272,2]
[328944228,1718019045719,-472.73,0.00020272,2]
[328944230,1718019045730,-500.0,0.00020272,2]
[328944232,1718019045741,-500.0,0.00020272,2]
[328944234,1718019045752,-305.22,0.00020272,2]
[328944236,1718019045763,-500.0,0.00020272,2]
[328944238,1718019045773,-476.69,0.00020273,2]
[328944239,1718019045783,-214.75,0.00020273,2]
[328944240,1718019045794,-500.0,0.00020273,2]
[328944241,1718019045804,-387.13,0.00020273,2]
[328944242,1718019045813,-526.66,0.00020273,2]
[328944243,1718019045823,-500.0,0.00020273,2]
[328944244,1718019045834,-500.0,0.00020546,2]
[328944245,1718019045845,-406.58,0.00020546,2]
[328944246,1718019045856,-500.0,0.00020546,2]
[328944247,1718019045866,-500.0,0.00020547,2]
[328944248,1718019045876,-526.66,0.00020547,2]
[328944249,1718019045885,-500.0,0.00020547,2]
[328944250,1718019045895,-155.3,0.0002082,2]
[328944251,1718019045905,-360.2,0.0002082,2]
[328944252,1718019045915,-173.2,0.00020821,2]
[328944253,1718019045925,-526.66,0.00020821,2]
[328944254,1718019045935,-500.0,0.00020821,2]
[328944255,1718019045944,-1000.0,0.00021,21]
[328944256,1718019045955,-471.11084475,0.00021,2]
[328944258,1718019045965,-526.66,0.00021095,2]
[328944260,1718019045976,-500.0,0.00021095,2]
[328944262,1718019045986,-526.66,0.00021369,2]
[328944264,1718019045996,-500.0,0.00021369,2]
[328944266,1718019046006,-587.0,0.00021386,2]
[328944268,1718019046018,-526.66,0.00021643,2]
[328944270,1718019046028,-500.0,0.00021643,2]
[328944272,1718019046039,-587.0,0.00021734,2]
[328944274,1718019046049,-526.66,0.00021917,2]
[328944276,1718019046059,-500.0,0.00021917,2]
[328944278,1718019046070,-166.666666,0.00021918,2]
[328944280,1718019046081,-1000.0,0.00022,22]
[328944282,1718019046091,-526.66,0.00022191,2]
[328944284,1718019046101,-500.0,0.00022191,2]
[328944286,1718019046111,-169.32240008,0.00022324,2]
[328944288,1718019046121,-166.666666,0.00022431,2]
[328944290,1718019046131,-526.66,0.00022465,2]
[328944292,1718019046141,-500.0,0.00022465,2]
[328944294,1718019046150,-526.66,0.00022739,2]
[328944296,1718019046160,-500.0,0.00022739,2]
[328944298,1718019046169,-166.666666,0.00022944,2]
[328944300,1718019046180,-1000.0,0.00023,23]
[328944302,1718019046189,-207.16914811,0.00023,2]
[328944304,1718019046199,-155.01395126,0.00023,2]
[328944306,1718019046209,-526.66,0.00023013,2]
[328944308,1718019046220,-500.0,0.00023013,2]
[328944309,1718019046229,-526.66,0.00023287,2]
[328944312,1718019046239,-500.0,0.00023287,2]
[328944313,1718019046250,-823.0,0.00023335,2]
[328944315,1718019046259,-166.666666,0.00023456,2]
[328944317,1718019046271,-526.66,0.00023561,2]
[328944319,1718019046285,-500.0,0.00023561,2]
[328944322,1718019046295,-166.666666,0.00023808,2]
[328944325,1718019046305,-526.66,0.00023835,2]
[328944328,1718019046315,-500.0,0.00023835,2]
[328944331,1718019046325,-823.0,0.00023907,2]
[328944334,1718019046335,-166.666666,0.00023969,2]
[328944337,1718019046345,-285.0,0.00024,2]
[328944340,1718019046357,-1000.0,0.00024,24]
[328944343,1718019046367,-15985.34899414,0.00024,2]
[328944422,1718019047112,-2142.01228819,0.0002,2]
[328944424,1718019047123,-3284.35700534,0.00024,2]
[328944475,1718019122351,838.21614462,9.999e-05,2]
[328944476,1718019142676,155.01395126,9.999e-05,2]
[328944488,1718019491665,242.4161977,9.999e-05,2]
[328944629,1718020234208,-155.01395126,0.00017599,2]
[328944630,1718020234218,-1974.79912551,0.000176,2]
[328944631,1718020234229,-5078.8692688,0.00018177,2]
[328944632,1718020234239,-160.194328,0.00019178,2]
[328944633,1718020234250,-300.0,0.00019449,2]
[328944634,1718020234261,-300.0,0.00019449,2]
[328944635,1718020234287,-500.0,0.0001945,2]
[328944636,1718020234310,-500.0,0.0001945,2]
[328944637,1718020234320,-2562.02,0.0001945,2]
[328944638,1718020234330,-3518.94,0.0001945,2]
[328944639,1718020234340,-500.0,0.0001945,2]
[328944640,1718020234351,-13807.29861506,0.00019451,2]
[328944641,1718020234364,-4375.21816774,0.00019451,2]
[328944776,1718020247680,-2291.54651994,0.00019451,2]
[328944778,1718020247693,-20139.05970576,0.00019451,2]
[328944780,1718020247703,-500.0,0.00019724,2]
[328944782,1718020247713,-2562.02,0.00019724,2]
[328944784,1718020247723,-2295.48229576,0.00019724,2]
[328944951,1718020679096,523.27943417,9.999e-05,2]
[328945144,1718021446186,-300.0,0.00019998,2]
[328945145,1718021446196,-300.0,0.00019998,2]
[328945146,1718021446206,-500.0,0.00019999,2]
[328945147,1718021446217,-2348.52,0.00019999,2]
[328945148,1718021446227,-744.0700427,0.00019999,2]
[328945185,1718021596015,155.01550155,9.999e-05,2]
[328945186,1718021832372,282.49542241,9.999e-05,2]
[328945187,1718021931941,686.41586833,9.999e-05,2]
[328945188,1718021997866,156.9359009,9.999e-05,2]
[328945189,1718022060665,182.02946988,9.999e-05,2]
[328945191,1718022510219,8362.47700024,0.00018568,15]
[328945262,1718022632893,-155.01550155,0.0001852,2]
[328945264,1718022632903,-183.18021,0.00018521,2]
[328945266,1718022632913,-243.22371274,0.00018567,2]
[328945425,1718022643657,-56.77628726,0.00018567,2]
[328945427,1718022643668,-300.0,0.00018567,2]
[328945429,1718022643678,-6579.42371274,0.00018568,2]
[328945431,1718022643691,-3010.42131003,0.00018568,2]
[328945433,1718022643701,-1705.17533974,0.00018569,2]
[328945489,1718022647317,-875.13545226,0.00018569,2]
[328945490,1718022647327,-160.194328,0.00019178,2]
[328945491,1718022647337,-152.68719636,0.000193,2]
[328945492,1718022647348,-4239.03743968,0.00019786,2]
[328945493,1718022647358,-4181.23850012,0.00019873,15]
[328945494,1718022647369,-190.20871415,0.00019898,2]
[328945495,1718022647380,-169.32240008,0.000199,2]
[328945496,1718022647390,-240.82,0.0001999,3]
[328945497,1718022647402,-500.0,0.00019999,2]
[328945498,1718022647413,-2250.66,0.00019999,2]
[328945499,1718022647424,-3245.67,0.00019999,2]
[328945500,1718022647435,-500.0,0.00019999,2]
[328945501,1718022647445,-1229.95106715,0.0002,2]
[328945521,1718022890735,1100.75857609,0.00015,2]
[328945597,1718023830303,2090.61925006,0.0001878,15]
[328945635,1718023839102,-155.01395126,0.00018263,2]
[328945638,1718023839113,-183.180211,0.00018264,2]
[328945639,1718023839125,-300.0,0.00018779,2]
[328945640,1718023839136,-300.0,0.00018779,2]
[328945641,1718023839148,-8140.27268203,0.00018779,2]
[328945642,1718023839158,-5074.78013082,0.0001878,2]
[328945643,1718023839172,-1169.62442848,0.0001878,2]
[328945644,1718023839185,-18645.5954407,0.0001878,2]
[328945645,1718023839196,-152.68719635,0.000192,2]
[328945646,1718023839207,-153.76627967,0.00019799,3]
[328945647,1718023839217,-4236.4157039,0.00019838,2]
[328945648,1718023839228,-175.0990226,0.0001989,2]
[328945649,1718023839239,-521.88,0.00019897,2]
[328945650,1718023839250,-500.0,0.00019897,2]
[328945651,1718023839260,-500.0,0.00019897,2]
[328945652,1718023839272,-500.0,0.00019897,2]
[328945653,1718023839282,-500.0,0.00019897,2]
[328945654,1718023839292,-500.0,0.00019897,2]
[328945655,1718023839303,-3110.44,0.00019897,2]
[328945656,1718023839314,-500.0,0.00019897,2]
[328945657,1718023839325,-2156.89,0.00019897,2]
[328945658,1718023839335,-500.0,0.00019897,2]
[328945659,1718023839347,-500.0,0.00019897,2]
[328945660,1718023839358,-500.0,0.00019897,2]
[328945661,1718023839368,-500.0,0.00019897,2]
[328945662,1718023839379,-562.82,0.00019897,2]
[328945663,1718023839389,-500.0,0.00019897,2]
[328945664,1718023839400,-500.0,0.00019897,2]
[328945665,1718023839412,-509.71230586,0.00019897,2]
[328945666,1718023839422,-500.0,0.00019897,2]
[328945667,1718023839433,-43837.86514394,0.00019898,2]
[328945668,1718023839444,-373.18,0.0001999,3]
[328945669,1718023839454,-151.0,0.00019999,2]
[328945670,1718023839464,-151.0,0.00019999,2]
[328945671,1718023839475,-86190.28032867,0.0002,2]
[328945672,1718023839486,-1115.98840214,0.0002017,2]
[328945673,1718023839497,-500.0,0.00020171,2]
[328945674,1718023839507,-3110.44,0.00020171,2]
[328945675,1718023839518,-2156.89,0.00020171,2]
[328945676,1718023839528,-500.0,0.00020171,2]
[328945677,1718023839538,-151.0,0.00020445,2]
[328945678,1718023839548,-159.96263377,0.00020445,2]
[328945679,1718023839559,-3110.44,0.00020445,2]
[328945680,1718023839569,-2156.89,0.00020445,2]
[328945681,1718023839580,-548.65917418,0.00020445,2]
[328945682,1718023839592,-420.0,0.00020657,2]
[328945683,1718023839604,-788.46053295,0.00020719,15]
[328945684,1718023839614,-201.983991,0.00020719,2]
[328945685,1718023839625,-3110.44,0.00020719,2]
[328945686,1718023839636,-2156.89,0.00020719,2]
[328945687,1718023839646,-3110.44,0.00020993,2]
[328945688,1718023839657,-2156.89,0.00020993,2]
[328945689,1718023839669,-3110.44,0.00021267,2]
[328945690,1718023839680,-2156.89,0.00021267,2]
[328945691,1718023839692,-746.36,0.0002136,3]
[328945692,1718023839703,-3110.44,0.00021541,2]
[328945693,1718023839714,-2156.89,0.00021541,2]
[328945694,1718023839725,-417.48241542,0.00021688,2]
[328945695,1718023839736,-1282.49787033,0.00021688,2]
[328945696,1718023839747,-3110.44,0.00021815,2]
[328945697,1718023839768,-2156.89,0.00021815,2]
[328945698,1718023839781,-166.666666,0.00021918,2]
[328945699,1718023839792,-242.0,0.00022,2]
[328945700,1718023839805,-3110.44,0.00022089,2]
[328945701,1718023839816,-2156.89,0.00022089,2]
[328945702,1718023839827,-242.0,0.00022192,2]
[328945703,1718023839838,-3110.44,0.00022363,2]
[328945704,1718023839849,-2156.89,0.00022363,2]
[328945705,1718023839860,-166.666666,0.00022431,2]
[328945706,1718023839876,-3110.44,0.00022637,2]
[328945707,1718023839887,-2156.89,0.00022637,2]
[328945708,1718023839899,-587.0,0.00022723,2]
[328945709,1718023839912,-3110.44,0.00022911,2]
[328945710,1718023839922,-2156.89,0.00022911,2]
[328945711,1718023839933,-166.666666,0.00022944,2]
[328945712,1718023839946,-207.16914811,0.00023,2]
[328945713,1718023839957,-50000.0,0.00023,2]
[328945714,1718023839967,-155.01395126,0.00023013,2]
[328945715,1718023839978,-242.0,0.00023014,2]
[328945716,1718023839989,-3110.44,0.00023185,2]
[328945717,1718023839999,-2156.89,0.00023185,2]
[328945718,1718023840010,-166.666666,0.00023456,2]
[328945719,1718023840021,-3110.44,0.00023459,2]
[328945720,1718023840031,-2156.89,0.00023459,2]
[328945721,1718023840041,-3110.44,0.00023733,2]
[328945722,1718023840052,-2156.89,0.00023733,2]
[328945723,1718023840063,-166.666666,0.00023808,2]
[328945724,1718023840075,-166.666666,0.00023969,2]
[328945725,1718023840086,-13481.93972849,0.00024,2]
[328945726,1718023840098,-31889.44500545,0.00024,2]
[328945727,1718023840109,-3110.44,0.00024007,2]
[328945728,1718023840120,-2156.89,0.00024007,2]
[328945729,1718023840131,-248.0,0.00024164,2]
[328945730,1718023840142,-151.0,0.00024205,7]
[328945731,1718023840152,-3110.44,0.00024281,2]
[328945732,1718023840163,-2156.89,0.00024281,2]
[328945733,1718023840174,-166.666666,0.00024482,2]
[328945734,1718023840185,-3110.44,0.00024555,2]
[328945735,1718023840196,-2156.89,0.00024555,2]
[328945736,1718023840206,-200.0,0.00024658,15]
[328945737,1718023840216,-198.86022148,0.00024658,2]
[328945738,1718023840227,-3110.44,0.00024829,2]
[328945739,1718023840237,-2156.89,0.00024829,2]
[328945740,1718023840248,-151.0,0.00024965,7]
[328945741,1718023840259,-823.0,0.00024995,2]
[328945742,1718023840272,-1000.0,0.00025,25]
[328945743,1718023840282,-771.64601623,0.00025,2]
[328945744,1718023840293,-1052.04545201,0.00025,2]
[328945745,1718023840303,-3110.44,0.00025103,2]
[328945746,1718023840314,-2156.89,0.00025103,2]
[328945747,1718023840324,-3110.44,0.00025377,2]
[328945748,1718023840335,-2156.89,0.00025377,2]
[328945749,1718023840346,-3110.44,0.00025651,2]
[328945750,1718023840356,-2156.89,0.00025651,2]
[328945751,1718023840368,-304.0,0.000257,2]
[328945752,1718023840378,-151.0,0.00025725,7]
[328945753,1718023840389,-242.0,0.00025775,2]
[328945754,1718023840402,-3110.44,0.00025925,2]
[328945755,1718023840413,-2156.89,0.00025925,2]
[328945756,1718023840424,-1000.0,0.00026,26]
[328945757,1718023840435,-3310.55124961,0.00026029,2]
[328945758,1718023840446,-3110.50610654,0.00026199,2]
[328945759,1718023840458,-2156.941909,0.00026199,2]
[328945760,1718023840469,-151.0,0.00026485,7]
[328945761,1718023840480,-623.68,0.000266,3]
[328945762,1718023840491,-623.68,0.000266,3]
[328945763,1718023840502,-623.68,0.000266,3]
[328945764,1718023840513,-623.68,0.000266,3]
[328945765,1718023840526,-623.68,0.000266,3]
[328945766,1718023840537,-623.68,0.000266,3]
[328945767,1718023840548,-623.68,0.000266,3]
[328945768,1718023840559,-623.68,0.000266,3]
[328945769,1718023840570,-623.68,0.000266,3]
[328945770,1718023840581,-623.68,0.000266,3]
[328945771,1718023840592,-623.68,0.000266,3]
[328945772,1718023840603,-623.68,0.000266,3]
[328945773,1718023840614,-623.68,0.000266,3]
[328945774,1718023840625,-623.68,0.000266,3]
[328945775,1718023840636,-623.68,0.000266,3]
[328945776,1718023840647,-623.68,0.000266,3]
[328945777,1718023840657,-623.68,0.000266,3]
[328945778,1718023840668,-623.68,0.000266,3]
[328945779,1718023840679,-623.68,0.000266,3]
[328945780,1718023840690,-623.68,0.000266,3]
[328945781,1718023840701,-623.68,0.000266,3]
[328945782,1718023840712,-623.68,0.000266,3]
[328945783,1718023840722,-623.68,0.000266,3]
[328945784,1718023840734,-623.68,0.000266,3]
[328945785,1718023840745,-623.68,0.000266,3]
[328945786,1718023840755,-623.68,0.000266,3]
[328945787,1718023840767,-623.68,0.000266,3]
[328945788,1718023840778,-623.68,0.000266,3]
[328945789,1718023840788,-623.68,0.000266,3]
[328945790,1718023840799,-623.68,0.000266,3]
[328945791,1718023840810,-623.68,0.000266,3]
[328945792,1718023840820,-623.68,0.000266,3]
[328945793,1718023840831,-623.68,0.000266,3]
[328945794,1718023840842,-623.68,0.000266,3]
[328945795,1718023840852,-623.68,0.000266,3]
[328945796,1718023840863,-623.68,0.000266,3]
[328945797,1718023840877,-623.68,0.000266,3]
[328945798,1718023840888,-623.68,0.000266,3]
[328945799,1718023840899,-623.68,0.000266,3]
[328945800,1718023840911,-623.68,0.000266,3]
[328945801,1718023840921,-620.03409692,0.0002665,2]
[328945802,1718023840931,-300.0,0.000267,2]
[328945803,1718023840942,-623.68,0.000267,3]
[328945804,1718023840954,-623.68,0.000267,3]
[328945805,1718023840965,-623.68,0.000267,3]
[328945806,1718023840976,-623.68,0.000267,3]
[328945807,1718023840987,-623.68,0.000267,3]
[328945808,1718023840998,-623.68,0.000267,3]
[328945809,1718023841009,-623.68,0.000267,3]
[328945810,1718023841021,-623.68,0.000267,3]
[328945811,1718023841032,-623.68,0.000267,3]
[328945812,1718023841043,-623.68,0.000267,3]
[328945813,1718023841054,-623.68,0.000267,3]
[328945814,1718023841066,-623.68,0.000267,3]
[328945815,1718023841077,-623.68,0.000267,3]
[328945816,1718023841088,-623.68,0.000267,3]
[328945817,1718023841100,-623.68,0.000267,3]
[328945818,1718023841112,-623.68,0.000267,3]
[328945821,1718023841249,-623.68,0.000267,3]
[328945823,1718023841261,-623.68,0.000267,3]
[328945825,1718023841275,-623.68,0.000267,3]
[328945826,1718023841286,-623.68,0.000267,3]
[328945827,1718023841297,-623.68,0.000267,3]
[328945828,1718023841309,-623.68,0.000267,3]
[328945829,1718023841320,-623.68,0.000267,3]
[328945830,1718023841332,-623.68,0.000267,3]
[328945831,1718023841345,-623.68,0.000267,3]
[328945832,1718023841356,-623.68,0.000267,3]
[328945833,1718023841371,-623.68,0.000267,3]
[328945834,1718023841382,-623.68,0.000267,3]
[328945835,1718023841394,-623.68,0.000267,3]
[328945836,1718023841404,-623.68,0.000267,3]
[328945837,1718023841415,-623.68,0.000267,3]
[328945838,1718023841426,-623.68,0.000267,3]
[328945839,1718023841437,-623.68,0.000267,3]
[328945840,1718023841447,-623.68,0.000267,3]
[328945841,1718023841458,-623.68,0.000267,3]
[328945842,1718023841469,-623.68,0.000267,3]
[328945843,1718023841479,-623.68,0.000267,3]
[328945844,1718023841490,-623.68,0.000267,3]
[328945845,1718023841501,-623.68,0.000267,3]
[328945846,1718023841512,-623.68,0.000267,3]
[328945847,1718023841524,-623.68,0.000268,3]
[328945848,1718023841535,-623.68,0.000268,3]
[328945849,1718023841546,-623.68,0.000268,3]
[328945850,1718023841557,-623.68,0.000268,3]
[328945851,1718023841568,-623.68,0.000268,3]
[328945852,1718023841578,-623.68,0.000268,3]
[328945853,1718023841588,-623.68,0.000268,3]
[328945854,1718023841599,-623.68,0.000268,3]
[328945855,1718023841609,-623.68,0.000268,3]
[328945856,1718023841620,-623.68,0.000268,3]
[328945857,1718023841630,-623.68,0.000268,3]
[328945859,1718023841641,-623.68,0.000268,3]
[328945860,1718023841652,-623.68,0.000268,3]
[328945861,1718023841662,-623.68,0.000268,3]
[328945862,1718023841673,-623.68,0.000268,3]
[328945863,1718023841683,-623.68,0.000268,3]
[328945864,1718023841693,-623.68,0.000268,3]
[328945865,1718023841703,-623.68,0.000268,3]
[328945866,1718023841714,-623.68,0.000268,3]
[328945867,1718023841725,-623.68,0.000268,3]
[328945868,1718023841736,-750.0,0.00026849,2]
[328945869,1718023841746,-1000.0,0.00027,27]
[328945870,1718023841757,-491.13363458,0.00027,2]
[328945871,1718023841769,-300.37533913,0.00027,2]
[328945872,1718023841779,-155.01395126,0.00027243,2]
[328945873,1718023841789,-151.0,0.00027244,7]
[328945874,1718023841800,-151.0,0.00027244,7]
[328945875,1718023841810,-242.0,0.00027386,2]
[328945876,1718023841821,-500.0,0.00027397,2]
[328945877,1718023841833,-615.60817003,0.00027397,2]
[328945878,1718023841843,-500.0,0.00027397,2]
[328945879,1718023841853,-500.0,0.00027397,2]
[328945880,1718023841864,-500.0,0.00027397,2]
[328945881,1718023841878,-500.0,0.00027397,2]
[328945882,1718023841888,-559.00128396,0.00027397,2]
[328945883,1718023841899,-1152.0,0.00027495,2]
[328945884,1718023841911,-600.0,0.00027613,2]
[328945885,1718023841922,-242.0,0.00027616,2]
[328945886,1718023841932,-300.0,0.000277,2]
[328945887,1718023841945,-602.71361848,0.00027901,2]
[328945888,1718023841955,-155.00930056,0.00028,2]
[328945889,1718023841965,-1000.0,0.00028,28]
[328945890,1718023841976,-652.56830432,0.00028,2]
[328945891,1718023841986,-584.58597489,0.00028,2]
[328945892,1718023841997,-646.54906766,0.00028002,2]
[328945893,1718023842008,-151.0,0.00028004,7]
[328945894,1718023842018,-151.0,0.00028004,7]
[328945895,1718023842029,-12749.22191399,0.0002869,2]
[328945896,1718023842039,-300.0,0.000287,2]
[328945897,1718023842049,-160.0,0.000287,2]
[328945898,1718023842059,-284.45597088,0.00028762,2]
[328945899,1718023842069,-932.35426985,0.00028762,2]
[328945900,1718023842079,-155.00930056,0.00028764,7]
[328945901,1718023842090,-402.76703287,0.00028764,2]
[328945902,1718023842101,-878.06957438,0.00028764,2]
[328945903,1718023842111,-225.1695884,0.00028764,2]
[328945904,1718023842122,-768.78811311,0.00028764,10]
[328945905,1718023842132,-1463.53759806,0.00028764,2]
[328945906,1718023842143,-500.0,0.00028764,2]
[328945907,1718023842154,-151.0,0.00028764,7]
[328945908,1718023842164,-151.0,0.00028764,7]
[328945909,1718023842175,-16343.55715697,0.00028797,2]
[328945910,1718023842185,-222.10465282,0.00028797,2]
[328945911,1718023842196,-1457.56102675,0.00028891,2]
[328945912,1718023842207,-155.05136365,0.00028914,2]
[328945913,1718023842217,-7919.47684419,0.00028914,2]
[328945914,1718023842227,-471.08100537,0.00028914,2]
[328945915,1718023842238,-194.99112884,0.00028914,2]
[328945916,1718023842249,-819.8622721,0.00028914,2]
[328945917,1718023842260,-190.92384673,0.00028914,2]
[328945918,1718023842272,-5993.96343912,0.00028914,2]
[328945919,1718023842282,-836.40686191,0.00028914,2]
[328945920,1718023842292,-158.88368216,0.00028914,2]
[328945921,1718023842302,-193.34879195,0.00028915,4]
[328945922,1718023842313,-155.29551386,0.00028918,2]
[328945923,1718023842324,-282.24014531,0.00028919,2]
[328945924,1718023842335,-685.44254124,0.00028919,2]
[328945925,1718023842346,-156.69435256,0.00028919,2]
[328945926,1718023842356,-181.8094771,0.00028919,2]
[328945927,1718023842367,-369.68878488,0.0002892,2]
[328945928,1718023842378,-157.69330776,0.0002892,2]
[328945929,1718023842390,-155.05359262,0.0002892,2]
[328945930,1718023842400,-242.13468129,0.00028921,2]
[328945931,1718023842411,-250.20487116,0.00028922,2]
[328945932,1718023842422,-3580350.81188731,0.00028924,120]
[328945934,1718023843801,-646.54906766,0.00028,2]
[328945935,1718023843812,-51021.17093234,0.00028924,120]
[328945945,1718023849677,-330.29329238,0.00028917,3]
[328945946,1718023849691,-803.86178006,0.00028917,3]
[328945947,1718023849704,-1000.0,0.00028917,3]
[328945949,1718023923430,-900000.0,0.00028927,120]
[328945950,1718023935673,-900000.0,0.00028927,120]
[328945951,1718023940935,-900000.0,0.00028927,120]
[328945952,1718023952086,-315666.9219478,0.00028927,120]
[328945953,1718023952122,-10172.2,0.00028927,30]
[328945954,1718023952170,-1574160.8780522,0.00028927,120]
[328945956,1718023956180,-1900000.0,0.00028927,120]
[328945957,1718023965314,-525839.1219478,0.00028927,120]
[328945958,1718023965347,-5044.99322763,0.00028927,30]
[328945959,1718023965379,-1134.40782441,0.00028927,120]
[328945960,1718023965413,-1367981.47700016,0.00028927,120]
[328945961,1718024063346,155.01395126,0.00015,2]
[328946411,1718024469117,155.01395126,9.999e-05,2]
[328946414,1718024731185,2037.00298008,9.999e-05,2]
[328946474,1718025032957,-155.01395126,0.00019791,2]
[328946475,1718025032967,-516.11071645,0.00019792,2]
[328946476,1718025032977,-173.09676932,0.00019792,2]
[328946477,1718025032988,-516.11071645,0.0001986,2]
[328946478,1718025032998,-453.15,0.00019885,3]
[328946479,1718025033008,-226.57,0.00019885,3]
[328946480,1718025033018,-679.76,0.00019885,3]
[328946481,1718025033027,-300.0,0.00019889,2]
[328946482,1718025033037,-1902.85918466,0.0001989,2]
[328946483,1718025033047,-310.00930056,0.0001989,2]
[328946485,1718025033057,-300.0,0.0001989,2]
[328946486,1718025033066,-27174.86343238,0.0001989,2]
[328946487,1718025033102,-32408.77914936,0.0001989,2]
[328946488,1718025033112,-500.0,0.0001989,2]
[328946489,1718025033122,-500.0,0.0001989,2]
[328946490,1718025033131,-500.0,0.0001989,2]
[328946491,1718025033141,-398.59289355,0.0001989,2]
[328946514,1718025038949,-101.40710645,0.0001989,2]
[328946515,1718025038960,-500.0,0.0001989,2]
[328946516,1718025038970,-500.0,0.0001989,2]
[328946517,1718025038980,-645.87331419,0.0001989,2]
[328946518,1718025038991,-500.0,0.00019891,2]
[328946519,1718025039000,-1223.09,0.00019891,2]
[328946520,1718025039010,-86.77957936,0.00019891,2]
[328946521,1718025039023,-500.12181252,0.00019891,2]